[Event "*** Titled Tuesday Blitz"]
[Site "Chess.com"]
[Date "2018.12.04"]
[Round "7"]
[White "Zq1"]
[Black "ChainsOfFantasia"]
[Result "1/2-1/2"]
[WhiteElo "2497"]
[BlackElo "2390"]
[TimeControl "180+2"]
[EndTime "14:41:49 PST"]
[Termination "Game drawn by repetition"]

1. d4 {[%clk 0:03:01.9]} 1... Nf6 {[%clk 0:03:00]} 2. c4 {[%clk 0:03:02.8]} 2...
e6 {[%clk 0:03:01.9]} 3. g3 {[%clk 0:03:03]} 3... d5 {[%clk 0:03:03]} 4. Bg2
{[%clk 0:03:03.8]} 4... Be7 {[%clk 0:03:04.6]} 5. Nf3 {[%clk 0:03:04.6]} 5...
O-O {[%clk 0:03:06.2]} 6. Nc3 {[%clk 0:03:05.7]} 6... c6 {[%clk 0:03:03.9]} 7.
O-O {[%clk 0:03:03.2]} 7... b6 {[%clk 0:03:04.5]} 8. b3 {[%clk 0:02:56.9]} 8...
Nbd7 {[%clk 0:02:59.3]} 9. Qd3 {[%clk 0:02:52.2]} 9... Ba6 {[%clk 0:02:50.7]}
10. e4 {[%clk 0:02:51.8]} 10... dxc4 {[%clk 0:02:51.2]} 11. bxc4 {[%clk
0:02:52.3]} 11... e5 {[%clk 0:02:50.7]} 12. dxe5 {[%clk 0:02:44]} 12... Ng4
{[%clk 0:02:38.6]} 13. Bf4 {[%clk 0:02:43.3]} 13... g5 {[%clk 0:02:04.2]} 14.
Rfd1 {[%clk 0:02:42.1]} 14... gxf4 {[%clk 0:02:05.3]} 15. Qxd7 {[%clk
0:02:41.8]} 15... Qxd7 {[%clk 0:02:03.7]} 16. Rxd7 {[%clk 0:02:41.3]} 16... Bb4
{[%clk 0:02:05.1]} 17. Rc1 {[%clk 0:02:34.3]} 17... fxg3 {[%clk 0:02:05.8]} 18.
hxg3 {[%clk 0:02:32.6]} 18... Bxc4 {[%clk 0:02:00.4]} 19. Bh3 {[%clk 0:02:14.5]}
19... Be6 {[%clk 0:01:55.5]} 20. Rc7 {[%clk 0:02:07.9]} 20... Bc5 {[%clk
0:01:54.6]} 21. Bxg4 {[%clk 0:01:57.5]} 21... Bxg4 {[%clk 0:01:56.5]} 22. Nh4
{[%clk 0:01:51.5]} 22... Rad8 {[%clk 0:01:49.7]} 23. Rc2 {[%clk 0:01:47.1]}
23... Rd3 {[%clk 0:01:34.7]} 24. Kg2 {[%clk 0:01:44.1]} 24... Rfd8 {[%clk
0:01:26.7]} 25. Na4 {[%clk 0:01:34.2]} 25... Bd4 {[%clk 0:01:19]} 26. R7xc6
{[%clk 0:01:10.5]} 26... Bxe5 {[%clk 0:01:19.2]} 27. Nc3 {[%clk 0:01:10.6]}
27... Bd7 {[%clk 0:01:14.9]} 28. Nd5 {[%clk 0:01:07.5]} 28... Bxc6 {[%clk
0:01:03.5]} 29. Rxc6 {[%clk 0:00:58.1]} 29... Rd2 {[%clk 0:01:03.2]} 30. a4
{[%clk 0:00:51.1]} 30... Bd4 {[%clk 0:01:04.1]} 31. Nf5 {[%clk 0:00:43.5]} 31...
Bxf2 {[%clk 0:01:01.2]} 32. Kh3 {[%clk 0:00:44.9]} 32... Bd4 {[%clk 0:00:51.7]}
33. Rc7 {[%clk 0:00:42.7]} 33... Bg7 {[%clk 0:00:44.4]} 34. Rxa7 {[%clk
0:00:38.5]} 34... Re2 {[%clk 0:00:39.6]} 35. Nde7+ {[%clk 0:00:24.9]} 35... Kf8
{[%clk 0:00:39.5]} 36. Nc6 {[%clk 0:00:25.2]} 36... Re8 {[%clk 0:00:36.3]} 37.
Nd6 {[%clk 0:00:23.4]} 37... R2xe4 {[%clk 0:00:23.4]} 38. Nxe4 {[%clk
0:00:20.5]} 38... Rxe4 {[%clk 0:00:22.3]} 39. Ra8+ {[%clk 0:00:13.4]} 39... Re8
{[%clk 0:00:22.2]} 40. Ra6 {[%clk 0:00:14.9]} 40... Re6 {[%clk 0:00:17.2]} 41.
Rxb6 {[%clk 0:00:15]} 41... Be5 {[%clk 0:00:17.8]} 42. a5 {[%clk 0:00:14.7]}
42... Bc7 {[%clk 0:00:18]} 43. Ra6 {[%clk 0:00:11.4]} 43... Kg7 {[%clk 0:00:16]}
44. Kg4 {[%clk 0:00:10.9]} 44... Bxa5 {[%clk 0:00:16.2]} 45. Rxa5 {[%clk
0:00:10.1]} 45... Rxc6 {[%clk 0:00:17.7]} 46. Kh3 {[%clk 0:00:11.3]} 46... f6
{[%clk 0:00:18]} 47. Rb5 {[%clk 0:00:11.9]} 47... Kg6 {[%clk 0:00:18.7]} 48. Ra5
{[%clk 0:00:13.1]} 48... Re6 {[%clk 0:00:20.2]} 49. Rb5 {[%clk 0:00:13.9]} 49...
Re5 {[%clk 0:00:21.5]} 50. Rb2 {[%clk 0:00:14.8]} 50... Rd5 {[%clk 0:00:22.7]}
51. Kg2 {[%clk 0:00:15.9]} 51... Kg5 {[%clk 0:00:23.5]} 52. Ra2 {[%clk
0:00:17.3]} 52... h5 {[%clk 0:00:24.8]} 53. Rb2 {[%clk 0:00:18.4]} 53... Rc5
{[%clk 0:00:26.1]} 54. Rb4 {[%clk 0:00:18.8]} 54... Re5 {[%clk 0:00:26.7]} 55.
Kf3 {[%clk 0:00:18.9]} 55... Kf5 {[%clk 0:00:27.5]} 56. Rf4+ {[%clk 0:00:19.2]}
56... Kg6 {[%clk 0:00:28.1]} 57. Ra4 {[%clk 0:00:20.6]} 57... Rb5 {[%clk
0:00:29.1]} 58. Rc4 {[%clk 0:00:20.8]} 58... Rb3+ {[%clk 0:00:30.1]} 59. Kf4
{[%clk 0:00:20.2]} 59... Ra3 {[%clk 0:00:32]} 60. Rb4 {[%clk 0:00:20.5]} 60...
Ra1 {[%clk 0:00:31.9]} 61. Kf3 {[%clk 0:00:19.9]} 61... Rf1+ {[%clk 0:00:32.4]}
62. Kg2 {[%clk 0:00:21]} 62... Rc1 {[%clk 0:00:34.3]} 63. Kh3 {[%clk 0:00:22.1]}
63... Rc3 {[%clk 0:00:34]} 64. Ra4 {[%clk 0:00:23.1]} 64... Re3 {[%clk
0:00:33.2]} 65. Rb4 {[%clk 0:00:23.9]} 65... Kf5 {[%clk 0:00:32.9]} 66. Rf4+
{[%clk 0:00:24.1]} 66... Kg5 {[%clk 0:00:33.6]} 67. Ra4 {[%clk 0:00:24.7]} 67...
f5 {[%clk 0:00:31.1]} 68. Kg2 {[%clk 0:00:25.5]} 68... Re2+ {[%clk 0:00:32.1]}
69. Kf3 {[%clk 0:00:26.3]} 69... Re4 {[%clk 0:00:28.6]} 70. Ra8 {[%clk
0:00:25.6]} 70... Re6 {[%clk 0:00:28.2]} 71. Rg8+ {[%clk 0:00:25.6]} 71... Rg6
{[%clk 0:00:29.7]} 72. Ra8 {[%clk 0:00:26.6]} 72... Rb6 {[%clk 0:00:27.7]} 73.
Rg8+ {[%clk 0:00:27]} 73... Kf6 {[%clk 0:00:29.1]} 74. Rf8+ {[%clk 0:00:27.8]}
74... Kg6 {[%clk 0:00:30]} 75. Rg8+ {[%clk 0:00:28.7]} 75... Kh7 {[%clk
0:00:29.7]} 76. Rg5 {[%clk 0:00:27.7]} 76... Rb3+ {[%clk 0:00:29]} 77. Kg2
{[%clk 0:00:28]} 77... Kh6 {[%clk 0:00:20.8]} 78. Rxf5 {[%clk 0:00:28.2]} 78...
Rb2+ {[%clk 0:00:21.4]} 79. Kh3 {[%clk 0:00:28.6]} 79... Rb1 {[%clk 0:00:22.3]}
80. Ra5 {[%clk 0:00:28.1]} 80... Rh1+ {[%clk 0:00:14.8]} 81. Kg2 {[%clk
0:00:28.8]} 81... Rc1 {[%clk 0:00:16.6]} 82. Kf3 {[%clk 0:00:29.6]} 82... Rc3+
{[%clk 0:00:17.1]} 83. Kf4 {[%clk 0:00:29.4]} 83... Rc4+ {[%clk 0:00:18.3]} 84.
Kf3 {[%clk 0:00:29.1]} 84... Rc3+ {[%clk 0:00:19.5]} 85. Kg2 {[%clk 0:00:30.6]}
85... Rc2+ {[%clk 0:00:20.6]} 86. Kh3 {[%clk 0:00:32]} 86... Rc1 {[%clk
0:00:20.7]} 87. Ra4 {[%clk 0:00:32.5]} 87... Rh1+ {[%clk 0:00:21.1]} 88. Kg2
{[%clk 0:00:33.7]} 88... Rc1 {[%clk 0:00:23]} 89. Kf3 {[%clk 0:00:34.5]} 89...
Rc3+ {[%clk 0:00:23.9]} 90. Kf4 {[%clk 0:00:35.9]} 90... Rc6 {[%clk 0:00:25.3]}
91. Ra5 {[%clk 0:00:36]} 91... Rf6+ {[%clk 0:00:26.2]} 92. Rf5 {[%clk
0:00:36.3]} 92... Rb6 {[%clk 0:00:28.1]} 93. Re5 {[%clk 0:00:36.7]} 93... Rb4+
{[%clk 0:00:28.9]} 94. Kf3 {[%clk 0:00:36.5]} 94... Rb3+ {[%clk 0:00:30]} 95.
Kg2 {[%clk 0:00:37.4]} 95... Rb2+ {[%clk 0:00:31.2]} 96. Kh3 {[%clk 0:00:38.3]}
96... Rb1 {[%clk 0:00:32.7]} 97. Re6+ {[%clk 0:00:37.3]} 97... Kg5 {[%clk
0:00:33.2]} 98. Re5+ {[%clk 0:00:38.6]} 98... Kg6 {[%clk 0:00:34.7]} 99. Ra5
{[%clk 0:00:39.1]} 99... Rb2 {[%clk 0:00:33.7]} 100. Rc5 {[%clk 0:00:39.4]}
100... Ra2 {[%clk 0:00:34.7]} 101. Rc4 {[%clk 0:00:39.4]} 101... Rb2 {[%clk
0:00:35.4]} 102. Rc6+ {[%clk 0:00:40.2]} 102... Kg5 {[%clk 0:00:36.2]} 103. Rc5+
{[%clk 0:00:41.3]} 103... Kg6 {[%clk 0:00:37.6]} 104. Rc6+ {[%clk 0:00:42.6]}
104... Kg5 {[%clk 0:00:38.9]} 105. Rc5+ {[%clk 0:00:43.7]} 105... Kg6 {[%clk
0:00:40]} 106. Rc6+ {[%clk 0:00:44.8]} 106... Kg5 {[%clk 0:00:41.1]} 1/2-1/2

[Event "*** Titled Tuesday Blitz"]
[Site "Chess.com"]
[Date "2018.12.04"]
[Round "7"]
[White "vinniethepooh"]
[Black "Chessialist"]
[Result "1/2-1/2"]
[WhiteElo "2407"]
[BlackElo "2469"]
[TimeControl "180+2"]
[EndTime "14:42:30 PST"]
[Termination "Game drawn by stalemate"]

1. d4 {[%clk 0:03:01.9]} 1... Nf6 {[%clk 0:03:00.7]} 2. c4 {[%clk 0:03:03.2]}
2... e5 {[%clk 0:03:02]} 3. dxe5 {[%clk 0:03:03.6]} 3... Ng4 {[%clk 0:03:03.2]}
4. Nf3 {[%clk 0:03:05]} 4... Bc5 {[%clk 0:03:03.7]} 5. e3 {[%clk 0:03:06.3]}
5... Nc6 {[%clk 0:03:05.1]} 6. Nc3 {[%clk 0:03:07.8]} 6... Ngxe5 {[%clk
0:03:05.8]} 7. Nxe5 {[%clk 0:03:06.7]} 7... Nxe5 {[%clk 0:03:06.7]} 8. Be2
{[%clk 0:03:08.5]} 8... O-O {[%clk 0:03:07.5]} 9. b3 {[%clk 0:03:04.7]} 9... a5
{[%clk 0:03:08.4]} 10. Ne4 {[%clk 0:02:58.8]} 10... Be7 {[%clk 0:03:08.9]} 11.
Bb2 {[%clk 0:02:56]} 11... d6 {[%clk 0:03:10]} 12. O-O {[%clk 0:02:53.8]} 12...
Re8 {[%clk 0:03:11.3]} 13. Qd2 {[%clk 0:02:48.2]} 13... Bf8 {[%clk 0:03:02.7]}
14. Ng3 {[%clk 0:02:46]} 14... Qh4 {[%clk 0:03:00.4]} 15. Qd4 {[%clk 0:02:43.9]}
15... Qxd4 {[%clk 0:02:49.9]} 16. Bxd4 {[%clk 0:02:45.8]} 16... Nc6 {[%clk
0:02:51.2]} 17. Bc3 {[%clk 0:02:45]} 17... Be6 {[%clk 0:02:49.6]} 18. Rfd1
{[%clk 0:02:40.6]} 18... Rad8 {[%clk 0:02:46.9]} 19. Rd2 {[%clk 0:02:37.5]}
19... d5 {[%clk 0:02:45.7]} 20. cxd5 {[%clk 0:02:37.9]} 20... Rxd5 {[%clk
0:02:46.4]} 21. Rad1 {[%clk 0:02:37.3]} 21... Rxd2 {[%clk 0:02:46.7]} 22. Rxd2
{[%clk 0:02:39.2]} 22... Bb4 {[%clk 0:02:46.5]} 23. Bxb4 {[%clk 0:02:37.2]}
23... axb4 {[%clk 0:02:48.4]} 24. Bb5 {[%clk 0:02:34.3]} 24... Rd8 {[%clk
0:02:47.3]} 25. Ne4 {[%clk 0:02:19.4]} 25... Rxd2 {[%clk 0:02:46.2]} 26. Nxd2
{[%clk 0:02:21.3]} 26... Ne7 {[%clk 0:02:45.6]} 27. e4 {[%clk 0:02:16.8]} 27...
f5 {[%clk 0:02:45.4]} 28. f3 {[%clk 0:02:14.3]} 28... fxe4 {[%clk 0:02:46.3]}
29. fxe4 {[%clk 0:02:16.2]} 29... c5 {[%clk 0:02:44.4]} 30. Kf2 {[%clk
0:02:15.4]} 30... Kf7 {[%clk 0:02:44.6]} 31. Ke3 {[%clk 0:02:15.7]} 31... Ng6
{[%clk 0:02:44.2]} 32. Bc4 {[%clk 0:02:08.2]} 32... Kf6 {[%clk 0:02:43.8]} 33.
Be2 {[%clk 0:01:47.6]} 33... Ne5 {[%clk 0:02:41.5]} 34. Nf3 {[%clk 0:01:35.7]}
34... g5 {[%clk 0:02:42.5]} 35. Ne1 {[%clk 0:01:30.1]} 35... b6 {[%clk
0:02:31.6]} 36. Nc2 {[%clk 0:01:18.3]} 36... Bg4 {[%clk 0:02:07]} 37. h3 {[%clk
0:00:57]} 37... Be6 {[%clk 0:02:00.8]} 38. Kd2 {[%clk 0:00:50.7]} 38... Ng6
{[%clk 0:01:57.9]} 39. Ke3 {[%clk 0:00:31.6]} 39... Nf4 {[%clk 0:01:55]} 40. Bf1
{[%clk 0:00:31]} 40... h5 {[%clk 0:01:52.9]} 41. Ne1 {[%clk 0:00:30.1]} 41... h4
{[%clk 0:01:49.9]} 42. Nf3 {[%clk 0:00:27.6]} 42... Ng6 {[%clk 0:01:50.5]} 43.
Nd2 {[%clk 0:00:21.9]} 43... Ne5 {[%clk 0:01:51.5]} 44. Be2 {[%clk 0:00:22.8]}
44... Nc6 {[%clk 0:01:48.7]} 45. Nf3 {[%clk 0:00:19.7]} 45... Bf7 {[%clk
0:01:43.9]} 46. Bb5 {[%clk 0:00:14.1]} 46... Ne5 {[%clk 0:01:44.7]} 47. Nd2
{[%clk 0:00:07.5]} 47... Bh5 {[%clk 0:01:45]} 48. Be2 {[%clk 0:00:07.2]} 48...
Bxe2 {[%clk 0:01:40.2]} 49. Kxe2 {[%clk 0:00:09.1]} 49... Nc6 {[%clk 0:01:42]}
50. Nc4 {[%clk 0:00:08.1]} 50... b5 {[%clk 0:01:43.3]} 51. Nd6 {[%clk
0:00:07.2]} 51... Nd4+ {[%clk 0:01:44.5]} 52. Ke3 {[%clk 0:00:06.7]} 52... Ke7
{[%clk 0:01:35.6]} 53. Nb7 {[%clk 0:00:04.7]} 53... Ne6 {[%clk 0:01:36.8]} 54.
e5 {[%clk 0:00:06.3]} 54... Kd7 {[%clk 0:01:25.7]} 55. Nd6 {[%clk 0:00:07.5]}
55... Kc6 {[%clk 0:01:24.5]} 56. Ke4 {[%clk 0:00:07.8]} 56... Nd4 {[%clk
0:01:20]} 57. Nf7 {[%clk 0:00:05.1]} 57... Ne2 {[%clk 0:01:21.1]} 58. Nxg5
{[%clk 0:00:06]} 58... Nc3+ {[%clk 0:01:22.5]} 59. Kf5 {[%clk 0:00:07.2]} 59...
Nxa2 {[%clk 0:01:24.4]} 60. e6 {[%clk 0:00:08.5]} 60... Kd6 {[%clk 0:01:22]} 61.
Kf6 {[%clk 0:00:09.7]} 61... Nc3 {[%clk 0:01:23.5]} 62. Nf7+ {[%clk 0:00:10.3]}
62... Kc6 {[%clk 0:01:21.6]} 63. Ne5+ {[%clk 0:00:09.4]} 63... Kd6 {[%clk
0:01:20.5]} 64. Nf7+ {[%clk 0:00:09.9]} 64... Kc7 {[%clk 0:01:21.8]} 65. Ke5
{[%clk 0:00:05.9]} 65... Kc6 {[%clk 0:00:56.2]} 66. Nd8+ {[%clk 0:00:05.9]}
66... Kc7 {[%clk 0:00:57.5]} 67. Nf7 {[%clk 0:00:06.6]} 67... c4 {[%clk
0:00:57.7]} 68. Nd6 {[%clk 0:00:05.8]} 68... Kd8 {[%clk 0:00:53.9]} 69. bxc4
{[%clk 0:00:06.2]} 69... b3 {[%clk 0:00:55]} 70. Kf6 {[%clk 0:00:04.9]} 70... b2
{[%clk 0:00:43.3]} 71. e7+ {[%clk 0:00:05.7]} 71... Kc7 {[%clk 0:00:44.5]} 72.
e8=Q {[%clk 0:00:04.6]} 72... b1=Q {[%clk 0:00:45.2]} 73. Nxb5+ {[%clk
0:00:05.7]} 73... Nxb5 {[%clk 0:00:45.1]} 74. Qxb5 {[%clk 0:00:06.7]} 74... Qf1+
{[%clk 0:00:45.8]} 75. Qf5 {[%clk 0:00:05.3]} 75... Qxc4 {[%clk 0:00:44.9]} 76.
Kg6 {[%clk 0:00:06]} 76... Qg8+ {[%clk 0:00:44.2]} 77. Kh5 {[%clk 0:00:06.6]}
77... Qxg2 {[%clk 0:00:44.7]} 78. Kxh4 {[%clk 0:00:08]} 78... Kd6 {[%clk
0:00:43.5]} 79. Qg4 {[%clk 0:00:08.6]} 79... Qf2+ {[%clk 0:00:44.5]} 80. Kg5
{[%clk 0:00:09.5]} 80... Ke7 {[%clk 0:00:44.3]} 81. h4 {[%clk 0:00:08.7]} 81...
Kf7 {[%clk 0:00:42.4]} 82. Qh5+ {[%clk 0:00:08.6]} 82... Kg7 {[%clk 0:00:41.7]}
83. Qg6+ {[%clk 0:00:09.6]} 83... Kh8 {[%clk 0:00:42.6]} 84. Qe8+ {[%clk
0:00:09.8]} 84... Kg7 {[%clk 0:00:43.5]} 85. Qe7+ {[%clk 0:00:11.1]} 85... Qf7
{[%clk 0:00:42]} 86. Qe5+ {[%clk 0:00:10.2]} 86... Kh7 {[%clk 0:00:43.3]} 87.
Qe4+ {[%clk 0:00:09]} 87... Kg7 {[%clk 0:00:44.1]} 88. h5 {[%clk 0:00:08.9]}
88... Qf6+ {[%clk 0:00:45.4]} 89. Kg4 {[%clk 0:00:10.3]} 89... Kh6 {[%clk
0:00:44.2]} 90. Qe3+ {[%clk 0:00:11.6]} 90... Kh7 {[%clk 0:00:44.9]} 91. Qa7+
{[%clk 0:00:12.3]} 91... Kh6 {[%clk 0:00:45.9]} 92. Qe3+ {[%clk 0:00:12.2]}
92... Kh7 {[%clk 0:00:47.2]} 93. Qd3+ {[%clk 0:00:13.1]} 93... Kh6 {[%clk
0:00:48.2]} 94. Qd2+ {[%clk 0:00:14.1]} 94... Kh7 {[%clk 0:00:49.3]} 95. Qe3
{[%clk 0:00:11.4]} 95... Qg7+ {[%clk 0:00:48.8]} 96. Kf5 {[%clk 0:00:10.7]}
96... Qf7+ {[%clk 0:00:49.4]} 97. Kg5 {[%clk 0:00:11.2]} 97... Qg7+ {[%clk
0:00:50.6]} 98. Kh4 {[%clk 0:00:12]} 98... Qf6+ {[%clk 0:00:51.5]} 99. Qg5
{[%clk 0:00:12.1]} 99... Qxg5+ {[%clk 0:00:52.4]} 100. Kxg5 {[%clk 0:00:14]}
100... Kg7 {[%clk 0:00:54.3]} 101. h6+ {[%clk 0:00:15.9]} 101... Kh8 {[%clk
0:00:56.1]} 102. Kh5 {[%clk 0:00:17.8]} 102... Kg8 {[%clk 0:00:58]} 103. Kg6
{[%clk 0:00:19.7]} 103... Kh8 {[%clk 0:00:59.9]} 104. h7 {[%clk 0:00:21.6]}
1/2-1/2

[Event "*** Titled Tuesday Blitz"]
[Site "Chess.com"]
[Date "2018.12.04"]
[Round "7"]
[White "BlackBoarder"]
[Black "volcanoexplorer"]
[Result "1/2-1/2"]
[WhiteElo "2492"]
[BlackElo "2400"]
[TimeControl "180+2"]
[EndTime "14:44:29 PST"]
[Termination "Game drawn - insufficient material"]

1. e4 {[%clk 0:03:01.9]} 1... e5 {[%clk 0:03:00.7]} 2. Nf3 {[%clk 0:03:02.3]}
2... Nc6 {[%clk 0:03:02]} 3. d4 {[%clk 0:03:02.8]} 3... exd4 {[%clk 0:03:03]} 4.
Bc4 {[%clk 0:03:03.4]} 4... Bc5 {[%clk 0:03:03.9]} 5. O-O {[%clk 0:03:04.3]}
5... Nf6 {[%clk 0:03:05.1]} 6. e5 {[%clk 0:03:04.7]} 6... d5 {[%clk 0:03:01.7]}
7. exf6 {[%clk 0:03:05.6]} 7... dxc4 {[%clk 0:03:03]} 8. Re1+ {[%clk 0:03:07]}
8... Be6 {[%clk 0:03:03.4]} 9. Ng5 {[%clk 0:03:08.3]} 9... Qd5 {[%clk
0:03:04.5]} 10. Nc3 {[%clk 0:03:08.8]} 10... Qf5 {[%clk 0:03:05.6]} 11. Nce4
{[%clk 0:03:10]} 11... Bf8 {[%clk 0:02:08.4]} 12. g4 {[%clk 0:02:02]} 12... Qd5
{[%clk 0:01:54.5]} 13. Nxe6 {[%clk 0:01:25.9]} 13... fxe6 {[%clk 0:01:50.3]} 14.
Bg5 {[%clk 0:01:21.5]} 14... Ne5 {[%clk 0:00:57]} 15. f4 {[%clk 0:01:07.2]}
15... Nf7 {[%clk 0:00:34.5]} 16. fxg7 {[%clk 0:00:43]} 16... Bxg7 {[%clk
0:00:36.4]} 17. Bf6 {[%clk 0:00:43.9]} 17... O-O {[%clk 0:00:31.9]} 18. g5
{[%clk 0:00:45.1]} 18... Nd6 {[%clk 0:00:21.5]} 19. Bxg7 {[%clk 0:00:33.8]}
19... Kxg7 {[%clk 0:00:23.4]} 20. Nf6 {[%clk 0:00:35.5]} 20... Qf5 {[%clk
0:00:24.1]} 21. Qh5 {[%clk 0:00:31.7]} 21... Kh8 {[%clk 0:00:19.7]} 22. Rxe6
{[%clk 0:00:26.3]} 22... Rf7 {[%clk 0:00:10.7]} 23. Rae1 {[%clk 0:00:20.9]}
23... Qxf4 {[%clk 0:00:07.5]} 24. g6 {[%clk 0:00:09]} 24... Rg8 {[%clk
0:00:02.6]} 25. Nxg8 {[%clk 0:00:06.2]} 25... Qf2+ {[%clk 0:00:03.9]} 26. Kh1
{[%clk 0:00:07.6]} 26... Rg7 {[%clk 0:00:05.5]} 27. R6e2 {[%clk 0:00:06.1]}
27... Qf6 {[%clk 0:00:05.7]} 28. gxh7 {[%clk 0:00:05.8]} 28... Qf7 {[%clk
0:00:06.2]} 29. Qxf7 {[%clk 0:00:06.9]} 29... Nxf7 {[%clk 0:00:07.9]} 30. Nf6
{[%clk 0:00:07.3]} 30... Rg6 {[%clk 0:00:07.9]} 31. Re8+ {[%clk 0:00:08.7]}
31... Kg7 {[%clk 0:00:09.4]} 32. Nh5+ {[%clk 0:00:04.2]} 32... Kxh7 {[%clk
0:00:10.5]} 33. Nf4 {[%clk 0:00:05.1]} 33... Rf6 {[%clk 0:00:11.7]} 34. Nd5
{[%clk 0:00:05.5]} 34... Rf5 {[%clk 0:00:13.2]} 35. Nxc7 {[%clk 0:00:06.2]}
35... d3 {[%clk 0:00:14.2]} 36. cxd3 {[%clk 0:00:06.4]} 36... cxd3 {[%clk
0:00:16.1]} 37. R8e7 {[%clk 0:00:08]} 37... Kh6 {[%clk 0:00:16.2]} 38. Rd7
{[%clk 0:00:07.8]} 38... Ne5 {[%clk 0:00:17.4]} 39. Rxe5 {[%clk 0:00:06.3]}
39... Rxe5 {[%clk 0:00:16.7]} 40. Rxd3 {[%clk 0:00:07.8]} 40... Re1+ {[%clk
0:00:18.1]} 41. Kg2 {[%clk 0:00:08.7]} 41... Re2+ {[%clk 0:00:20]} 42. Kg3
{[%clk 0:00:09.2]} 42... Rxb2 {[%clk 0:00:21.9]} 43. Ra3 {[%clk 0:00:06.5]}
43... a6 {[%clk 0:00:22.5]} 44. Rb3 {[%clk 0:00:07.2]} 44... Rxa2 {[%clk
0:00:22.8]} 45. Rxb7 {[%clk 0:00:08.4]} 45... Ra3+ {[%clk 0:00:23.9]} 46. Kg2
{[%clk 0:00:09.1]} 46... Ra2+ {[%clk 0:00:25.3]} 47. Kg3 {[%clk 0:00:09.5]}
47... Ra3+ {[%clk 0:00:26.8]} 48. Kf4 {[%clk 0:00:10.9]} 48... Ra4+ {[%clk
0:00:28.3]} 49. Kf5 {[%clk 0:00:08.9]} 49... Ra2 {[%clk 0:00:29.3]} 50. Rb6+
{[%clk 0:00:08.6]} 50... Kh5 {[%clk 0:00:25]} 51. Rb8 {[%clk 0:00:09.2]} 51...
Rf2+ {[%clk 0:00:21]} 52. Ke4 {[%clk 0:00:10.5]} 52... Kg6 {[%clk 0:00:20.7]}
53. Rg8+ {[%clk 0:00:10.3]} 53... Kf7 {[%clk 0:00:21.3]} 54. Rh8 {[%clk
0:00:11]} 54... Kg7 {[%clk 0:00:22.5]} 55. Rh3 {[%clk 0:00:11.5]} 55... a5
{[%clk 0:00:23.7]} 56. Ke3 {[%clk 0:00:10.7]} 56... Rc2 {[%clk 0:00:22.9]} 57.
Nd5 {[%clk 0:00:08.2]} 57... a4 {[%clk 0:00:21.6]} 58. Rg3+ {[%clk 0:00:08.5]}
58... Kf7 {[%clk 0:00:21.8]} 59. h4 {[%clk 0:00:09.3]} 59... a3 {[%clk
0:00:21.2]} 60. Rg1 {[%clk 0:00:09.7]} 60... Rh2 {[%clk 0:00:21.3]} 61. Rf1+
{[%clk 0:00:09.3]} 61... Ke6 {[%clk 0:00:21.5]} 62. Nf4+ {[%clk 0:00:10.1]}
62... Ke5 {[%clk 0:00:19.3]} 63. h5 {[%clk 0:00:08.5]} 63... a2 {[%clk
0:00:13.7]} 64. Rd1 {[%clk 0:00:08.7]} 64... Kf6 {[%clk 0:00:13]} 65. Rd6+
{[%clk 0:00:08.8]} 65... Kf7 {[%clk 0:00:11.3]} 66. Ra6 {[%clk 0:00:09.3]} 66...
Rb2 {[%clk 0:00:10.9]} 67. Ke4 {[%clk 0:00:09.8]} 67... Kg7 {[%clk 0:00:09.1]}
68. Kf5 {[%clk 0:00:10.4]} 68... Kh7 {[%clk 0:00:10.6]} 69. Kg5 {[%clk
0:00:10.1]} 69... Rg2+ {[%clk 0:00:11.3]} 70. Kf5 {[%clk 0:00:10.9]} 70... Rb2
{[%clk 0:00:12.8]} 71. Ra7+ {[%clk 0:00:10.9]} 71... Kh6 {[%clk 0:00:13.2]} 72.
Ra6+ {[%clk 0:00:12.1]} 72... Kh7 {[%clk 0:00:14.5]} 73. Nd5 {[%clk 0:00:11.8]}
73... Rb5 {[%clk 0:00:13]} 74. Ke6 {[%clk 0:00:12.8]} 74... Kh6 {[%clk
0:00:12.1]} 75. Nf6 {[%clk 0:00:13]} 75... Rb6+ {[%clk 0:00:11]} 76. Rxb6 {[%clk
0:00:11.3]} 76... a1=Q {[%clk 0:00:12.5]} 77. Rd6 {[%clk 0:00:07.5]} 77... Kg5
{[%clk 0:00:11.3]} 78. Kf7 {[%clk 0:00:07.2]} 78... Qa7+ {[%clk 0:00:10.5]} 79.
Ke6 {[%clk 0:00:04.1]} 79... Qa2+ {[%clk 0:00:10.4]} 80. Rd5+ {[%clk 0:00:03.1]}
80... Kh6 {[%clk 0:00:10.4]} 81. Ne4 {[%clk 0:00:03.9]} 81... Qe2 {[%clk
0:00:10]} 82. Re5 {[%clk 0:00:04.2]} 82... Qg4+ {[%clk 0:00:11]} 83. Kd5 {[%clk
0:00:04.9]} 83... Qd7+ {[%clk 0:00:11.6]} 84. Nd6 {[%clk 0:00:05.5]} 84... Qa7
{[%clk 0:00:07.8]} 85. Ke6 {[%clk 0:00:05.1]} 85... Qa2+ {[%clk 0:00:07.6]} 86.
Kf6 {[%clk 0:00:05.6]} 86... Qf2+ {[%clk 0:00:08.7]} 87. Ke6 {[%clk 0:00:02.7]}
87... Qa2+ {[%clk 0:00:09.3]} 88. Ke7 {[%clk 0:00:03.8]} 88... Qa7+ {[%clk
0:00:08.7]} 89. Kf6 {[%clk 0:00:04]} 89... Qb6 {[%clk 0:00:08.3]} 90. Ke6 {[%clk
0:00:04]} 90... Qc6 {[%clk 0:00:08.9]} 91. Rd5 {[%clk 0:00:04.6]} 91... Qc2
{[%clk 0:00:08.2]} 92. Nf7+ {[%clk 0:00:04.2]} 92... Kg7 {[%clk 0:00:04.1]} 93.
h6+ {[%clk 0:00:05.2]} 93... Kh7 {[%clk 0:00:05.1]} 94. Rg5 {[%clk 0:00:05.7]}
94... Qc4+ {[%clk 0:00:05.4]} 95. Kf6 {[%clk 0:00:06.3]} 95... Qf4+ {[%clk
0:00:05.3]} 96. Rf5 {[%clk 0:00:05.1]} 96... Qd4+ {[%clk 0:00:05.9]} 97. Ke6
{[%clk 0:00:04.2]} 97... Qc4+ {[%clk 0:00:06.9]} 98. Ke7 {[%clk 0:00:03.6]}
98... Qc7+ {[%clk 0:00:07.9]} 99. Ke6 {[%clk 0:00:03.2]} 99... Qc4+ {[%clk
0:00:07.6]} 100. Rd5 {[%clk 0:00:04.4]} 100... Qe4+ {[%clk 0:00:08.5]} 101. Re5
{[%clk 0:00:04.3]} 101... Qc4+ {[%clk 0:00:09.5]} 102. Kf6 {[%clk 0:00:05.3]}
102... Qf4+ {[%clk 0:00:10]} 103. Ke6 {[%clk 0:00:06.6]} 103... Qc4+ {[%clk
0:00:10.9]} 104. Ke7 {[%clk 0:00:06.5]} 104... Qc7+ {[%clk 0:00:11.7]} 105. Kf6
{[%clk 0:00:05.9]} 105... Qc6+ {[%clk 0:00:12.4]} 106. Re6 {[%clk 0:00:07.1]}
106... Qf3+ {[%clk 0:00:13.4]} 107. Ke7 {[%clk 0:00:07.9]} 107... Qb7+ {[%clk
0:00:14.5]} 108. Kf8 {[%clk 0:00:07.8]} 108... Qb8+ {[%clk 0:00:15.1]} 109. Ke7
{[%clk 0:00:06.2]} 109... Qb4+ {[%clk 0:00:15.9]} 110. Nd6 {[%clk 0:00:06.5]}
110... Qc5 {[%clk 0:00:15.2]} 111. Kd7 {[%clk 0:00:06.9]} 111... Qa5 {[%clk
0:00:14.4]} 112. Ke7 {[%clk 0:00:07.1]} 112... Qa7+ {[%clk 0:00:14.1]} 113. Kf8
{[%clk 0:00:06.7]} 113... Qc5 {[%clk 0:00:11.3]} 114. Kf7 {[%clk 0:00:07.6]}
114... Qd5 {[%clk 0:00:10.3]} 115. Ne8 {[%clk 0:00:07.8]} 115... Qd7+ {[%clk
0:00:05.7]} 116. Kf6 {[%clk 0:00:03.2]} 116... Qd4+ {[%clk 0:00:06.7]} 117. Ke7
{[%clk 0:00:03.3]} 117... Qa7+ {[%clk 0:00:06.8]} 118. Kf8 {[%clk 0:00:03.9]}
118... Qc5+ {[%clk 0:00:04.9]} 119. Kf7 {[%clk 0:00:03.5]} 119... Qf5+ {[%clk
0:00:05.6]} 120. Ke7 {[%clk 0:00:03.2]} 120... Qc5+ {[%clk 0:00:06.8]} 121. Nd6
{[%clk 0:00:04.1]} 121... Qc7+ {[%clk 0:00:07.7]} 122. Ke8 {[%clk 0:00:04.5]}
122... Qc6+ {[%clk 0:00:07.8]} 123. Kf7 {[%clk 0:00:04.7]} 123... Qd7+ {[%clk
0:00:07.7]} 124. Kf6 {[%clk 0:00:05.1]} 124... Qxe6+ {[%clk 0:00:09.1]} 125.
Kxe6 {[%clk 0:00:05]} 125... Kxh6 {[%clk 0:00:11]} 1/2-1/2